fUSD/lending_fUSD_20240713
["ID","MTS","AMOUNT","RATE_DAILY","PERIOD"]
[331948153,1720888232949,-281.19474695,0.00012589,2]
[331948156,1720888233007,-111.984491,0.00012589,2]
[331948158,1720888233018,-5524.74150994,0.0001259,2]
[331948160,1720888233032,-160.95,0.0001261,2]
[331948162,1720888233042,-1000.0,0.00012648,2]
[331948164,1720888233052,-50.32399906,0.00012669,2]
[331948166,1720888233064,-510.29600094,0.00012669,2]
[331948167,1720888233074,-2679.05399906,0.00012669,2]
[331948168,1720888233091,-865.31617129,0.00012669,2]
[331948169,1720888233103,-271.05628702,0.00012669,2]
[331948170,1720888233115,-2801.80671263,0.00012669,2]
[331948171,1720888233124,-198.19328737,0.0001269,2]
[331948189,1720888233663,-12.63671263,0.0001269,2]
[331948190,1720888233673,-257.62915964,0.00012708,2]
[331948191,1720888233685,-294.12084036,0.00012708,2]
[331948192,1720888233694,-200.0,0.00012715,2]
[331948193,1720888233703,-250.0,0.00012718,2]
[331948194,1720888233713,-250.0,0.00012719,2]
[331948195,1720888233722,-11488.28889338,0.00012756,2]
[331948196,1720888233734,-420.98804803,0.00012756,2]
[331948197,1720888233745,-1329.28402773,0.00012756,2]
[331948226,1720888238258,-30.81903086,0.00012756,2]
[331948227,1720888238270,-308.21,0.0001276,2]
[331948228,1720888238283,-500.0,0.00012904,2]
[331948229,1720888238295,-396.44740914,0.00012904,2]
[331948230,1720888238321,-103.55259086,0.00012904,2]
[331948231,1720888238337,-441.02504823,0.00012904,2]
[331948232,1720888238377,-952.57554,0.00012904,2]
[331948233,1720888238392,-162.73941177,0.00012904,2]
[331948234,1720888238404,-187.41976396,0.00012905,2]
[331948235,1720888238419,-312.57023604,0.00012905,2]
[331948236,1720888238431,-16.35764264,0.00012917,2]
[331948237,1720888238445,-275.96458678,0.00012917,2]
[331948238,1720888238491,-401.03777058,0.00012917,2]
[331948239,1720888238502,-554.2328082,0.00013,2]
[331948240,1720888238516,-620.0,0.00013,2]
[331948241,1720888238550,-75.7671918,0.00013,2]
[331948242,1720888238561,-695.39093,0.00013,2]
[331948243,1720888238572,-167.56,0.00013016,2]
[331948244,1720888238582,-214.082468,0.00013396,2]
[331948245,1720888238592,-4248.0,0.00013447,2]
[331948246,1720888238603,-524.57681731,0.00013472,2]
[331948248,1720888238614,-186.42838529,0.00013516,2]
[331948250,1720888238625,-316.13999639,0.00013543,2]
[331948252,1720888238636,-155.0,0.00013648,2]
[331948254,1720888238648,-1586.08,0.00013699,2]
[331948257,1720888238659,-500.0,0.00013726,2]
[331948259,1720888238671,-150.0,0.00013726,2]
[331948261,1720888238682,-2422.56245,0.0001386,2]
[331948263,1720888238693,-128219.1202,0.0001388,2]
[331948265,1720888238705,-200.0,0.00013888,2]
[331948267,1720888238717,-865.3161,0.0001389,2]
[331948271,1720888238729,-12458.0596,0.00013899,2]
[331948274,1720888238740,-2500.0,0.00013899,2]
[331948277,1720888238753,-500.0,0.00013899,2]
[331948279,1720888238763,-729.38,0.00013899,2]
[331948281,1720888238773,-1587.77242189,0.00013899,2]
[331948283,1720888238784,-463.80340463,0.00013899,2]
[331948285,1720888238794,-265.68910876,0.00013899,2]
[331948287,1720888238803,-2375.40634291,0.00013899,2]
[331948289,1720888238814,-321.06886542,0.00013899,2]
[331948291,1720888238825,-463.80340462,0.000139,2]
[331948293,1720888238837,-3935.66968811,0.000139,2]
[331948296,1720888238850,-3325.0,0.000139,2]
[331948340,1720888240446,-621.69900089,0.000139,2]
[331948341,1720888240457,-10000.0,0.000139,2]
[331948342,1720888240470,-3991.18446678,0.000139,2]
[331948343,1720888240481,-1865.0,0.000139,2]
[331948344,1720888240492,-463.80340462,0.000139,2]
[331948345,1720888240503,-10693.99130553,0.000139,2]
[331948346,1720888240514,-535.69,0.00013917,2]
[331948347,1720888240527,-500.0,0.00013917,2]
[331948348,1720888240538,-500.0,0.00013917,2]
[331948349,1720888240549,-500.0,0.00013917,2]
[331948350,1720888240559,-456.5467327,0.00013917,2]
[331948351,1720888240571,-500.0,0.00013954,2]
[331948352,1720888240582,-729.38,0.00013954,2]
[331948353,1720888240592,-535.69,0.00013972,2]
[331948354,1720888240603,-500.0,0.00013972,2]
[331948355,1720888240614,-500.0,0.00013972,2]
[331948356,1720888240625,-500.0,0.00013972,2]
[331948357,1720888240637,-1061.466,0.0001398,2]
[331948358,1720888240647,-500.0,0.00013989,2]
[331948359,1720888240658,-500.0,0.00013989,2]
[331948360,1720888240669,-569.40784361,0.00013989,2]
[331948361,1720888240679,-500.0,0.00013989,2]
[331948362,1720888240690,-500.0,0.00013989,2]
[331948363,1720888240701,-263.83483544,0.00013989,2]
[331948364,1720888240712,-651.75261058,0.00013989,2]
[331948365,1720888240723,-547.51,0.00013989,2]
[331948366,1720888240733,-189.49997913,0.00013989,2]
[331948367,1720888240743,-500.0,0.00013989,2]
[331948368,1720888240754,-500.0,0.00013989,2]
[331948369,1720888240765,-500.0,0.00013989,2]
[331948370,1720888240777,-500.0,0.00013989,2]
[331948371,1720888240788,-504.06983985,0.00013989,2]
[331948372,1720888240798,-505.95360801,0.00013989,2]
[331948373,1720888240810,-181.97966361,0.00013989,2]
[331948374,1720888240821,-500.0,0.00013989,2]
[331948375,1720888240831,-96893.43946431,0.0001399,2]
[331948376,1720888240858,-21278.0181144,0.0001399,2]
[331948377,1720888240872,-400.9296361,0.0001399,2]
[331948378,1720888240890,-698.50638546,0.0001399,2]
[331948379,1720888240903,-9080.8951318,0.0001399,2]
[331948380,1720888240917,-670.51193962,0.0001399,2]
[331948382,1720888240935,-2013.124334,0.0001399,2]
[331948383,1720888240950,-16074.37724907,0.0001399,2]
[331948384,1720888240965,-107327.31578208,0.0001399,2]
[331948385,1720888240977,-511.0,0.0001399,2]
[331948386,1720888240987,-172.663527,0.0001399,2]
[331948387,1720888240999,-172.663527,0.0001399,2]
[331948389,1720888241011,-172.663527,0.0001399,2]
[331948390,1720888241022,-172.663527,0.0001399,2]
[331948391,1720888241035,-172.663527,0.0001399,2]
[331948392,1720888241046,-1393.5913888,0.0001399,2]
[331948393,1720888241056,-1103.6752936,0.0001399,2]
[331948394,1720888241068,-813.7591984,0.0001399,2]
[331948395,1720888241079,-523.8431032,0.0001399,2]
[331948396,1720888241089,-233.927008,0.0001399,2]
[331948397,1720888241100,-512.85555556,0.00013996,2]
[331948398,1720888241111,-4102.84444448,0.00013997,2]
[331948399,1720888241122,-463.36648587,0.00013998,3]
[331948400,1720888241133,-521.85,0.00013998,2]
[331948401,1720888241144,-500.0,0.00013998,2]
[331948402,1720888241155,-500.0,0.00013998,2]
[331948403,1720888241165,-500.0,0.00013998,2]
[331948404,1720888241177,-500.0,0.00013998,2]
[331948405,1720888241188,-500.0,0.00013998,2]
[331948406,1720888241199,-581.04151402,0.00013998,2]
[331948407,1720888241210,-500.0,0.00013998,2]
[331948408,1720888241220,-500.0,0.00013998,2]
[331948409,1720888241231,-400.06495941,0.00013998,2]
[331948410,1720888241242,-553.59,0.00013998,2]
[331948411,1720888241253,-2000.0,0.00013998,2]
[331948412,1720888241264,-608.18,0.00013998,2]
[331948413,1720888241275,-560.1,0.00013998,2]
[331948414,1720888241288,-614.03,0.00013998,2]
[331948415,1720888241298,-537.7,0.00013998,2]
[331948416,1720888241309,-500.0,0.00013998,2]
[331948417,1720888241320,-500.0,0.00013998,2]
[331948418,1720888241331,-500.0,0.00013998,2]
[331948419,1720888241342,-655.43,0.00013998,2]
[331948420,1720888241352,-535.34,0.00013998,2]
[331948421,1720888241364,-500.0,0.00013998,2]
[331948422,1720888241375,-630.39,0.00013998,2]
[331948423,1720888241387,-500.0,0.00013998,2]
[331948424,1720888241399,-539.65,0.00013998,2]
[331948425,1720888241411,-699.33,0.00013998,2]
[331948426,1720888241422,-500.0,0.00013998,2]
[331948427,1720888241433,-500.0,0.00013998,2]
[331948428,1720888241444,-500.0,0.00013998,2]
[331948429,1720888241455,-500.0,0.00013998,2]
[331948430,1720888241466,-500.0,0.00013998,2]
[331948431,1720888241477,-556.84,0.00013998,2]
[331948432,1720888241487,-500.0,0.00013998,2]
[331948433,1720888241499,-719.69,0.00013998,2]
[331948434,1720888241511,-500.0,0.00013998,2]
[331948435,1720888241522,-839.45,0.00013998,2]
[331948436,1720888241536,-500.35037749,0.00013998,2]
[331948437,1720888241547,-500.0,0.00013998,2]
[331948438,1720888241558,-3411.92,0.00013998,2]
[331948439,1720888241572,-500.0,0.00013998,2]
[331948440,1720888241584,-554.15019104,0.00013998,2]
[331948441,1720888241594,-500.0,0.00013998,2]
[331948442,1720888241603,-500.0,0.00013998,2]
[331948443,1720888241814,-500.0,0.00013998,2]
[331948444,1720888241828,-500.0,0.00013998,2]
[331948445,1720888241838,-1096.76,0.00013998,2]
[331948446,1720888241848,-763.01,0.00013998,2]
[331948447,1720888241857,-500.0,0.00013998,2]
[331948448,1720888241867,-500.0,0.00013998,2]
[331948449,1720888241880,-500.0,0.00013998,2]
[331948450,1720888241891,-500.0,0.00013998,2]
[331948451,1720888241901,-500.0,0.00013998,2]
[331948452,1720888241911,-979.6,0.00013998,2]
[331948453,1720888241923,-300.02,0.00013999,2]
[331948454,1720888241933,-4306.60078189,0.00013999,2]
[331948455,1720888241942,-408119.05626249,0.00013999,2]
[331948456,1720888241954,-400.0,0.00013999,2]
[331948457,1720888241964,-172.663527,0.00013999,2]
[331948458,1720888241973,-600.7143168,0.00013999,2]
[331948459,1720888241983,-1683.507484,0.00013999,2]
[331948460,1720888241992,-23065.08606343,0.00013999,2]
[331948461,1720888242005,-19581.79359487,0.00013999,2]
[331948462,1720888242015,-139608.64081639,0.00014,2]
[331948463,1720888242024,-67299.0712154,0.00014,2]
[331948464,1720888242051,-9524.54689577,0.00014,2]
[331948465,1720888242065,-38037.51809323,0.00014,2]
[331948466,1720888242076,-300.0495264,0.00014,2]
[331948467,1720888242087,-9210.76,0.00014,2]
[331948468,1720888242098,-1730.84596,0.00014,2]
[331948503,1720888243321,-687.85090234,0.00014,2]
[331948506,1720888243333,-25609.99941106,0.00014,2]
[331948509,1720888243344,-25128.06637714,0.00014,2]
[331948515,1720888243378,-2984.75,0.00014,2]
[331948517,1720888243438,-294679.99999995,0.00014,2]
[331948518,1720888243496,-327.12129972,0.00014,2]
[331948529,1720888244586,-37474.24448721,0.00014,2]
[331948530,1720888244597,-993.12736041,0.00014,2]
[331948531,1720888244609,-1596.30903577,0.00014,2]
[331948532,1720888244630,-500.0,0.00013998,2]
[331948533,1720888244640,-0.32600203,0.00014,2]
[331948534,1720888244651,-837.09459333,0.00014,2]
[331948542,1720888246645,-470.9898768,0.00013989,2]
[331948543,1720888247121,-29.1201232,0.00013989,2]
[331948544,1720888247132,-597.74472125,0.00014,2]
[331948545,1720888265507,184.16852714,0.00012314,2]
[331948546,1720888280519,184.16852714,0.00012314,2]
[331948547,1720888316547,500.0,0.0001126,2]
[331948548,1720888325594,500.0,0.0001126,2]
[331948549,1720888399225,200.0,0.00024999,120]
[331948550,1720888402912,6321.843581,0.00011199,2]
[331948551,1720888402952,574.32707058,0.00011199,2]
[331948552,1720888402984,103715.13748723,0.00011199,2]
[331948553,1720888761317,3396.35507616,0.00011199,2]
[331948554,1720888791844,708.06,0.00010794,2]
[331948555,1720888889641,601.09223594,0.00011199,2]
[331948556,1720888925164,746.44921908,0.00011199,2]
[331948557,1720888928742,1050.0,0.00011199,2]
[331948558,1720888961879,863.36667595,0.00011199,2]
[331948559,1720888987934,627.65425399,0.00011199,2]
[331948560,1720888996447,1075.22218458,0.00011199,2]
[331948561,1720889041624,1003.05735552,0.00011199,2]
[331948568,1720889156640,300.51199197,0.00011199,2]
[331948569,1720889167595,3074.42673232,0.00011199,2]
[331948570,1720889236560,527.81158355,0.00011199,2]
[331948571,1720889238491,1845.8931512,0.00011199,2]
[331948775,1720889294860,1333.2878455,0.00011199,2]
[331948776,1720889306335,524.57681731,0.00011199,2]
[331948777,1720889318335,695.11,0.00010505,2]
[331948778,1720889324490,184.7840485,0.00011199,2]
[331948779,1720889347161,263.72535736,0.00011199,2]
[331948781,1720889360201,155.0,0.00011199,2]
[331948782,1720889369238,181.00587913,0.00011199,2]
[331948783,1720889371393,218.40264018,0.00011199,2]
[331948784,1720889371610,366.11090361,0.00011199,2]
[331948785,1720889379201,227.34202992,0.00011199,2]
[331948786,1720889385102,159.15927807,0.00011199,2]
[331948788,1720889386426,304.90815934,0.00011199,2]
[331948789,1720889386973,316.13999639,0.00011199,2]
[331948790,1720889388091,346.03148912,0.00011199,2]
[331948793,1720889407979,627.65425399,0.00011199,2]
[331948794,1720889420205,1742.85611798,0.00011199,2]
[331948795,1720889423042,296.19802604,0.00011199,2]
[331948801,1720889431474,-155.0,0.00012273,2]
[331948802,1720889431484,-168.0,0.00012301,2]
[331948803,1720889431494,-300.0,0.00012301,2]
[331948804,1720889431503,-312.99632994,0.00012302,2]
[331948805,1720889431515,-478.1956183,0.00012302,2]
[331948806,1720889431526,-990.95368645,0.00012302,2]
[331948807,1720889431536,-1054.88934928,0.00012302,2]
[331948808,1720889431545,-1019.95118513,0.00012302,2]
[331948809,1720889431557,-10777.85,0.00012368,2]
[331948810,1720889431567,-2203.79,0.00012515,2]
[331948811,1720889431576,-250.0,0.00012597,2]
[331948812,1720889431586,-200.0,0.0001261,2]
[331948813,1720889431596,-500.0,0.00012611,2]
[331948814,1720889431605,-176.38,0.00012613,2]
[331948815,1720889431614,-250.0,0.00012614,2]
[331948816,1720889431624,-499.99,0.00012632,2]
[331948817,1720889431634,-150.0,0.00012632,2]
[331948818,1720889431643,-23900.0,0.00012633,2]
[331948819,1720889431653,-695.11,0.00012769,2]
[331948820,1720889431662,-185.1,0.00012847,2]
[331948821,1720889431672,-200.0,0.00012865,2]
[331948822,1720889431681,-1289.25122195,0.00012865,2]
[331948823,1720889431693,-1814.03877805,0.00012865,2]
[331948824,1720889431702,-500.0,0.00012904,2]
[331948825,1720889431711,-500.0,0.00012904,2]
[331948826,1720889431720,-1000.0,0.00012908,2]
[331948827,1720889431730,-783.63,0.00012908,2]
[331948828,1720889431739,-400.73027061,0.00013,2]
[331948829,1720889431761,-530.14499983,0.00013,2]
[331948830,1720889431824,-319.12472956,0.00013,2]
[331948831,1720889431833,-336.4823945,0.00013128,2]
[331948832,1720889431845,-10742.37004089,0.00013128,2]
[331948833,1720889431855,-1069.67493178,0.00013128,2]
[331948834,1720889431865,-168.16,0.00013203,2]
[331948835,1720889431874,-420.0,0.000135,2]
[331948836,1720889431884,-186.42838529,0.00013516,2]
[331948837,1720889431893,-226.5848512,0.00013543,2]
[331948838,1720889431903,-155.77985922,0.00013543,2]
[331948839,1720889431913,-302.98236985,0.00013543,2]
[331948840,1720889431923,-155.14159365,0.00013543,2]
[331948841,1720889431932,-499.86466423,0.00013574,2]
[331948842,1720889431950,-1217.51351138,0.00013574,2]
[331948843,1720889431970,-1311.4207503,0.00013574,2]
[331948844,1720889431979,-155.0,0.00013574,2]
[331948845,1720889431989,-155.0,0.00013574,2]
[331948846,1720889431998,-155.0,0.00013574,2]
[331948847,1720889432008,-946.68077921,0.00013574,2]
[331948848,1720889432017,-227.34202992,0.00013574,2]
[331948849,1720889432026,-315.95199212,0.00013574,2]
[331948850,1720889432036,-1364.7,0.00013699,2]
[331948851,1720889432045,-255.0,0.00013731,2]
[331948852,1720889432056,-500.0,0.000138,2]
[331948853,1720889432065,-749.5555,0.0001389,2]
[331948854,1720889432074,-2004.27227519,0.0001389,2]
[331948855,1720889432086,-1218.74552481,0.0001389,2]
[331948856,1720889432096,-290.4654,0.0001389,2]
[331948857,1720889432105,-965.9951,0.0001389,2]
[331948858,1720889432114,-1031.1967,0.00013899,2]
[331948859,1720889432123,-159.95848773,0.00013899,2]
[331948860,1720889432133,-159.95848768,0.00013899,2]
[331948861,1720889432142,-94.97576226,0.00013899,2]
[331948862,1720889432153,-64.98272542,0.00013899,2]
[331948863,1720889432163,-159.95848768,0.00013899,2]
[331948864,1720889432173,-159.95848768,0.000139,2]
[331948865,1720889432182,-159.95848768,0.000139,2]
[331948866,1720889432191,-10746.62284937,0.000139,2]
[331948867,1720889432207,-589.589,0.000139,2]
[331948868,1720889437465,-276.40082024,0.00013543,2]
[331948869,1720889437477,-7514.69799124,0.000139,2]
[331948870,1720889437489,-11928.53515939,0.000139,2]
[331948871,1720889437501,-2162.1721,0.000139,2]
[331948872,1720889437511,-159.95848768,0.000139,2]
[331948873,1720889437520,-4820.81030948,0.000139,2]
[331948874,1720889437577,-5179.18969052,0.000139,2]
[331948875,1720889437586,-298.56781629,0.000139,2]
[331948876,1720889437597,-303.3907,0.000139,2]
[331948877,1720889437610,-474.77658882,0.000139,2]
[331948878,1720889437620,-1000.0,0.000139,2]
[331948879,1720889437631,-159.95848768,0.000139,2]
[331948880,1720889437643,-41.63306957,0.000139,2]
[331948881,1720889437656,-266.58375389,0.000139,2]
[331948882,1720889437666,-848.5,0.0001398,2]
[331948883,1720889437677,-530.52,0.00013989,2]
[331948884,1720889437688,-542.86,0.00013989,2]
[331948885,1720889437698,-65.99072611,0.00013989,2]
[331948886,1720889437712,-405.04,0.00013989,2]
[331948887,1720889437725,-28.96927389,0.00013989,2]
[331948888,1720889437736,-338.22043275,0.00013989,2]
[331948889,1720889437750,-161.77956725,0.00013989,2]
[331948890,1720889437761,-231.42008275,0.00013989,2]
[331948891,1720889437773,-268.57991725,0.00013989,2]
[331948892,1720889437784,-540.32,0.00013989,2]
[331948893,1720889437793,-635.24,0.00013989,2]
[331948894,1720889437806,-500.0,0.00013989,2]
[331948895,1720889437816,-500.0,0.00013989,2]
[331948896,1720889437825,-500.0,0.00013989,2]
[331948897,1720889437834,-561.43,0.00013989,2]
[331948898,1720889437843,-500.0,0.00013989,2]
[331948899,1720889437852,-387.34313684,0.00013989,2]
[331948900,1720889437865,-336.06686316,0.00013989,2]
[331948901,1720889437875,-500.0,0.00013989,2]
[331948902,1720889437884,-911.72,0.00013989,2]
[331948903,1720889437893,-500.0,0.00013989,2]
[331948904,1720889437902,-326.73168692,0.00013989,2]
[331948905,1720889437911,-500.0,0.00013989,2]
[331948906,1720889437921,-500.0,0.00013989,2]
[331948907,1720889437932,-500.0,0.00013989,2]
[331948908,1720889437943,-500.0,0.00013989,2]
[331948909,1720889437954,-500.0,0.00013989,2]
[331948919,1720889438134,-500.0,0.00013989,2]
[331948920,1720889438144,-500.0,0.00013989,2]
[331948921,1720889438153,-500.0,0.00013989,2]
[331948922,1720889438162,-506.83,0.00013989,2]
[331948923,1720889438172,-439.74144992,0.00013989,2]
[331948924,1720889438183,-60.25855008,0.00013989,2]
[331948925,1720889438192,-500.0,0.00013989,2]
[331948926,1720889438201,-500.0,0.00013989,2]
[331948927,1720889438210,-2000.0,0.00013999,2]
[331948928,1720889438219,-159.07360385,0.00013999,2]
[331948929,1720889438229,-603.67,0.00013999,2]
[331948930,1720889438238,-798.92,0.00013999,2]
[331948931,1720889438252,-613.61,0.00013999,2]
[331948932,1720889438261,-500.0,0.00013999,2]
[331948933,1720889438270,-678.21,0.00013999,2]
[331948934,1720889438280,-552.38,0.00013999,2]
[331948935,1720889438290,-443.79553626,0.00013999,2]
[331948936,1720889438314,-56.20446374,0.00013999,2]
[331948937,1720889438325,-670.19,0.00013999,2]
[331948938,1720889438335,-500.0,0.00013999,2]
[331948939,1720889438344,-500.0,0.00013999,2]
[331948940,1720889438353,-500.0,0.00013999,2]
[331948941,1720889438362,-556.79,0.00013999,2]
[331948942,1720889438371,-500.0,0.00013999,2]
[331948943,1720889438380,-518.29,0.00013999,2]
[331948944,1720889438389,-165.97207177,0.00013999,2]
[331948945,1720889438398,-832.8,0.00013999,2]
[331948946,1720889438407,-500.0,0.00013999,2]
[331948947,1720889438416,-426.84522834,0.00013999,2]
[331948948,1720889438425,-500.0,0.00013999,2]
[331948949,1720889438435,-500.0,0.00013999,2]
[331948950,1720889438444,-500.0,0.00013999,2]
[331948951,1720889438453,-3269.76,0.00013999,2]
[331948952,1720889438462,-512.83,0.00013999,2]
[331948953,1720889438471,-500.0,0.00013999,2]
[331948954,1720889438480,-500.0,0.00013999,2]
[331948955,1720889438489,-500.0,0.00013999,2]
[331948956,1720889438498,-500.0,0.00013999,2]
[331948957,1720889438507,-500.0,0.00013999,2]
[331948958,1720889438516,-500.0,0.00013999,2]
[331948959,1720889438525,-598.93,0.00013999,2]
[331948960,1720889438533,-1339.7,0.00013999,2]
[331948961,1720889438542,-1322.6467692,0.00013999,2]
[331948962,1720889438551,-752.05,0.00013999,2]
[331948963,1720889438561,-500.0,0.00013999,2]
[331948964,1720889438570,-500.0,0.00013999,2]
[331948965,1720889438579,-500.0,0.00013999,2]
[331948966,1720889438588,-1322.6467692,0.00013999,2]
[331948967,1720889438597,-500.0,0.00013999,2]
[331948968,1720889438606,-278.97461135,0.00013999,2]
[331948969,1720889438615,-400.0,0.00013999,2]
[331948970,1720889438624,-989.68,0.00013999,2]
[331948971,1720889438633,-631.0,0.00014,2]
[331948972,1720889438642,-3835.41748111,0.00014,2]
[331948973,1720889438653,-479.24999973,0.00014,2]
[331948974,1720889438664,-283.86999996,0.00014,2]
[331948975,1720889438675,-1115.92565592,0.00014,2]
[331948976,1720889438685,-2413.03528093,0.00014,2]
[331948986,1720889439562,-1322.49371623,0.00014,2]
[331948989,1720889439679,-523.18374584,0.00014,2]
[331948990,1720889439690,-3315.2,0.00014,2]
[331948991,1720889439701,-1626.45291562,0.00014,2]
[331948992,1720889439712,-421.48908425,0.00014,2]
[331948993,1720889439739,-971.108,0.00014,2]
[331948994,1720889439750,-5237.06,0.00014,2]
[331948995,1720889439802,-576.64,0.00014,2]
[331948996,1720889439814,-400.07483383,0.00014,2]
[331948997,1720889439825,-17100.0,0.00014,2]
[331948998,1720889439836,-118221.17733812,0.00014,2]
[331948999,1720889439845,-66168.78979488,0.00014,2]
[331949000,1720889439856,-413344.7113045,0.00014,2]
[331949001,1720889439877,-1720.67636963,0.00014,2]
[331949002,1720889439919,-750.72000001,0.00014,2]
[331949003,1720889439931,-1156.68,0.00014,2]
[331949004,1720889439942,-359.44640036,0.00014,2]
[331949019,1720889442494,-354.726,0.00014,2]
[331949031,1720889442549,-10255.70878323,0.00014,2]
[331949034,1720889442561,-604.95862919,0.00014,2]
[331949037,1720889442573,-1382.13967607,0.00014,2]
[331949042,1720889442606,-1082.91734936,0.00014,2]
[331949044,1720889442617,-12773.5267494,0.00014,2]
[331949046,1720889442628,-701.78153052,0.00014,2]
[331949048,1720889442638,-1930.675,0.00014,2]
[331949050,1720889442649,-2145.54693863,0.00014,2]
[331949063,1720889443035,-10992.66936184,0.00014,2]
[331949064,1720889443046,-6000.0,0.00014,2]
[331949065,1720889443058,-748.724,0.00014,2]
[331949066,1720889443070,-702.85064679,0.00014,2]
[331949067,1720889443080,-1718.60163644,0.00014,2]
[331949068,1720889443092,-3432.88,0.00014,2]
[331949069,1720889443103,-6690.018384,0.00014,2]
[331949070,1720889443113,-105783.32595014,0.00014,2]
[331949071,1720889443124,-723.27767348,0.00014,2]
[331949072,1720889443144,-590.18618634,0.00014,2]
[331949073,1720889443155,-11877.07977951,0.00014,2]
[331949074,1720889443170,-122588.70898176,0.00014,2]
[331949117,1720889445611,-287850.32829272,0.00014,2]
[331949118,1720889445622,-155.0,0.00014,2]
[331949119,1720889445632,-481921.12456676,0.00014,2]
[331949120,1720889445646,-32744.78737972,0.00014,2]
[331949121,1720889445659,-310.75725806,0.00014,2]
[331949122,1720889445670,-8507.88502033,0.00014,2]
[331949123,1720889445682,-1302.47389257,0.00014,2]
[331949124,1720889445693,-38961.50295327,0.00014,2]
[331949125,1720889445728,-719.95798759,0.00014,2]
[331949126,1720889445739,-5901.1455336,0.00014,2]
[331949127,1720889445750,-2247.12800775,0.00014,2]
[331949128,1720889445761,-2427.55502287,0.00014,2]
[331949129,1720889445787,-3946.5,0.00014,2]
[331949130,1720889445798,-7265.7,0.00014,2]
[331949131,1720889445809,-255.95603174,0.00014,2]
[331949132,1720889445846,-1728.74949612,0.00014,2]
[331949133,1720889445906,-489894.90554944,0.00014,2]
[331949134,1720889445970,-568.0,0.00014,2]
[331949135,1720889445980,-20186.25563151,0.00014,2]
[331949136,1720889445993,-6221.49473,0.00014,2]
[331949137,1720889446006,-34264.10693623,0.00014,2]
[331949138,1720889446104,155.0,0.00011199,2]
[331949172,1720889791860,789.37066542,0.00011199,2]
[331949176,1720889808526,627.65425399,0.00011199,2]
[331949181,1720889850111,648.05,0.0001088,2]
[331949183,1720889882283,155.0,0.00011199,2]
[331949184,1720889886650,364.69674518,0.00011199,2]
[331949185,1720889894477,626.36373021,0.00011199,2]
[331949186,1720889913765,233.46867856,0.00011199,2]
[331949187,1720889915401,166.70918062,0.00011199,2]
[331949188,1720889921253,155.0,0.00011199,2]
[331949191,1720889937808,194.24643572,0.00011199,2]
[331949192,1720889951655,298.50467804,0.00011199,2]
[331949194,1720889966167,1288.33484564,0.00011199,2]
[331949197,1720889969460,246.77971328,0.00011199,2]
[331949199,1720889989959,309.83496123,0.00011199,2]
[331949203,1720890033532,24728.49438693,0.00011199,2]
[331949206,1720890041238,5347.89721316,0.00011199,2]
[331949222,1720890147787,860.17499323,0.00011199,2]
[331949233,1720890204734,534.19365946,0.00011199,2]
[331949235,1720890212302,-500.0,0.0001126,2]
[331949236,1720890212323,-2.6,0.0001126,2]
[331949248,1720890287513,627.65425399,0.00011199,2]
[331949262,1720890363658,155.0,0.00011199,2]
[331949266,1720890388574,636.0,0.0001072,2]
[331949269,1720890398792,155.0,0.00011199,2]
[331949270,1720890399484,3029.40981677,0.00011199,2]
[331949285,1720890463231,173.59426351,0.00011199,2]
[331949288,1720890470010,26158.48319794,0.00011199,2]
[331949293,1720890492920,-497.4,0.0001126,2]
[331949294,1720890492950,-154.03199645,0.0001126,2]